bitfinex-derivatives/quotes_ETHF0:USTF0_20260207
["timestamp","ask_amount","ask_price","bid_price","bid_amount"]
[1770486560960,0.30924185,2064.3,2062.6,0.56288836]
[1770486561262,0.30924185,2064.2,2062.6,0.56288836]
[1770486562060,0.30751467,2064.1,2062.6,0.56288836]
[1770486563050,0.30751467,2064.1,2062.6,4.81468389]
[1770486563261,0.30751467,2064.1,2062.7,0.55906328]
[1770486563561,43.25007242,2064.4,2062.7,0.55906328]
[1770486563562,0.57082033,2064.4,2062.8,0.55906328]
[1770486564061,0.57082033,2064.4,2062.8,4.81085881]
[1770486564262,0.57082033,2064.4,2062.9,0.55906328]
[1770486564969,0.57082033,2064.1,2062.9,0.55906328]
[1770486565262,0.57082033,2063.9,2062.9,0.55906328]
[1770486566958,0.57082033,2064.1,2062.9,0.55906328]
[1770486567763,0.57082033,2064.1,2063.0,0.55906328]
[1770486569459,0.57082033,2064.0,2063.0,0.55906328]
[1770486569657,0.57082033,2063.9,2063.0,0.55906328]
[1770486570865,0.57082033,2063.8,2062.7,0.55906328]
[1770486571159,5.79052351,2063.9,2062.6,0.56288836]
[1770486571160,0.57082033,2063.6,2062.6,0.56288836]
[1770486571366,0.57082033,2063.5,2062.6,0.56288836]
[1770486571559,0.0050327,2063.5,2062.6,0.56288836]
[1770486571760,0.0050327,2063.5,2062.7,0.55906328]
[1770486574668,5.79052351,2064.4,2063.1,0.55906328]
[1770486574858,5.79052351,2064.8,2063.5,0.55906328]
[1770486575060,0.57082033,2064.7,2063.5,0.55906328]
[1770486575261,0.57082033,2064.6,2063.5,0.55906328]
[1770486575665,0.56234271,2064.5,2063.5,0.55906328]
[1770486575866,0.56234271,2064.4,2063.5,0.55906328]
[1770486576060,0.56234271,2064.5,2063.5,0.55906328]
[1770486578164,0.56234271,2064.4,2063.5,0.55906328]
[1770486581665,5.79621565,2064.6,2063.5,0.55906328]
[1770486581869,5.79621565,2064.6,2063.6,0.55930035]
[1770486581870,0.56803485,2064.6,2063.6,0.55930035]
[1770486582162,0.56234271,2064.5,2063.4,0.55930035]
[1770486583470,0.56234271,2064.4,2063.4,0.55930035]
[1770486585765,0.56234271,2064.3,2063.4,0.55930035]
[1770486587767,0.56234271,2064.1,2063.0,0.55930035]
[1770486588072,0.56234271,2064.0,2063.0,0.55930035]
[1770486588472,0.56234271,2063.8,2063.0,0.55930035]
[1770486589275,0.56234271,2063.6,2062.7,0.55930035]
[1770486590576,6.35286622,2063.8,2062.7,0.55930035]
[1770486590874,0.56234271,2063.7,2062.7,0.55930035]
[1770486592070,0.56234271,2064.1,2062.9,0.55930035]
[1770486593173,0.56234271,2064.1,2063.0,0.55930035]
[1770486593362,0.56234271,2064.0,2063.0,0.55930035]
[1770486593569,0.56234271,2063.9,2063.0,0.55930035]
[1770486597372,43.45455118,2064.0,2063.0,0.55930035]
[1770486597675,0.56234271,2063.9,2063.0,0.55930035]
[1770486598774,43.45455118,2064.1,2063.0,0.55930035]
[1770486598977,0.56234271,2064.0,2063.0,0.55930035]
[1770486600972,0.50034271,2064.0,2063.0,0.55930035]
[1770486601778,0.56234271,2064.0,2063.0,0.55930035]
[1770486608878,44.01689389,2064.0,2063.0,0.55930035]
[1770486609181,0.56234271,2064.0,2063.0,0.55930035]
[1770486609883,0.57505131,2063.9,2063.0,0.55930035]
[1770486610083,0.57505131,2063.8,2063.0,0.55930035]
[1770486610486,0.57505131,2063.7,2062.7,0.58160615]
[1770486610681,0.57505131,2063.6,2062.7,0.58160615]
[1770486612583,0.5624706,2063.5,2062.6,0.57671748]
[1770486612786,44.01702178,2063.3,2062.6,0.00382508]
[1770486612986,0.5624706,2063.2,2062.6,0.00382508]
[1770486613386,0.5624706,2063.0,2062.4,1e-08]
[1770486613585,0.5624706,2063.2,2062.4,0.3562066]
[1770486614389,0.56629357,2063.2,2062.4,0.36187936]
[1770486617597,0.56629357,2063.2,2062.4,0.00567276]
[1770486618000,0.5624706,2063.1,2062.4,0.00567276]
[1770486619493,0.5624706,2063.1,2062.4,0.00308528]
[1770486619696,0.5624706,2063.0,2062.4,0.00308528]
[1770486621597,1.97278981,2063.0,2061.7,3.02899167]
[1770486621800,0.5624706,2062.9,2061.8,0.5728924]
[1770486622398,0.5624706,2062.9,2061.7,0.18519251]
[1770486622598,0.5624706,2062.8,2061.8,0.5728924]
[1770486624205,0.5624706,2062.5,2061.4,0.5728924]
[1770486624401,0.5624706,2062.5,2061.6,0.5728924]
[1770486625100,0.5624706,2062.5,2061.5,0.5728924]
[1770486625299,0.5624706,2062.5,2061.5,0.57883222]
[1770486625802,0.5624706,2063.1,2061.5,0.57883222]
[1770486626200,0.5624706,2063.1,2061.7,0.5728924]
[1770486626595,0.5624706,2063.1,2061.8,0.5728924]
[1770486627001,0.00382297,2063.2,2062.0,0.5728924]
[1770486627206,0.00382297,2063.2,2062.0,3.41669156]
[1770486627501,0.56629357,2063.2,2062.1,0.5728924]
[1770486627901,0.00382297,2063.2,2062.1,0.5728924]
[1770486628104,0.00382297,2063.2,2062.1,3.41669156]
[1770486628302,0.00382297,2063.2,2062.2,0.5728924]
[1770486635111,0.00382297,2063.2,2062.2,3.41669156]
[1770486635410,0.00382297,2063.2,2062.3,0.56006465]
[1770486637717,0.54999803,2063.8,2062.5,0.56006465]
[1770486638009,0.54999803,2063.8,2062.6,0.56006465]
[1770486638713,0.55465149,2063.8,2062.6,0.56006465]
[1770486639503,0.55465149,2063.8,2062.7,0.56006465]
[1770486639706,0.00465346,2063.8,2062.7,0.56006465]
[1770486639906,0.55465149,2063.8,2062.7,0.56006465]
[1770486643718,0.00465346,2063.8,2062.7,0.56006465]
[1770486643918,0.00465346,2063.8,2062.8,0.56006465]
[1770486644414,0.55465149,2063.8,2062.8,0.56006465]
[1770486647023,0.00465346,2063.8,2062.8,0.56006465]
[1770486647419,43.45455118,2064.4,2062.8,0.56006465]
[1770486647420,0.54999803,2064.4,2063.0,0.56006465]
[1770486647614,0.54999803,2064.4,2063.1,0.56006465]
[1770486648422,0.55474819,2064.4,2063.1,0.56479258]
[1770486648822,0.55474819,2064.4,2063.2,0.56006465]
[1770486653129,0.00475016,2064.4,2063.2,0.56006465]
[1770486653327,0.55474819,2064.4,2063.2,0.56006465]
[1770486656221,0.55474819,2064.4,2063.3,0.56006465]
[1770486658824,0.00475016,2064.4,2063.3,0.56006465]
[1770486659529,0.55474819,2064.4,2063.3,0.56006465]
[1770486660429,0.00475016,2064.4,2063.3,7.65565934]
[1770486660626,0.54999803,2064.8,2063.7,0.56006465]
[1770486660932,0.54999803,2064.8,2063.8,0.56006465]
[1770486661621,0.55504545,2064.8,2063.8,0.56006465]
[1770486662525,0.55504545,2064.8,2063.7,2.84379916]
[1770486662727,0.55504545,2064.8,2063.5,0.56006465]
[1770486662924,0.54999803,2064.7,2063.5,0.56006465]
[1770486665430,0.54466348,2064.6,2063.2,3.38719653]
[1770486665630,0.54466348,2064.2,2063.1,0.00472793]
[1770486665828,43.99921466,2064.2,2063.1,0.00472793]
[1770486666032,0.54466348,2064.1,2063.1,0.00472793]
[1770486666824,0.54466348,2064.0,2063.1,0.00472793]
[1770486667030,43.99921466,2064.0,2063.1,0.00472793]
[1770486667224,0.54466348,2063.9,2062.5,2.84379916]
[1770486667532,0.54466348,2063.7,2062.6,0.54339737]
[1770486667731,0.54466348,2063.5,2062.4,0.54339737]
[1770486667932,0.54466348,2063.4,2062.4,0.54339737]
[1770486668228,0.54466348,2063.4,2062.4,0.00543916]
[1770486668433,0.54466348,2063.2,2062.4,0.00543916]
[1770486668633,0.54972201,2063.2,2062.1,0.54339737]
[1770486669032,0.54972201,2063.2,2061.9,1.14291021]
[1770486669033,0.54466348,2063.1,2061.9,1.68630758]
[1770486669236,0.54466348,2063.1,2062.0,0.54339737]
[1770486669631,0.54466348,2063.1,2062.0,0.54741608]
[1770486669831,0.54466348,2063.0,2061.5,2.83655329]
[1770486670031,0.54466348,2062.3,2060.9,0.53088134]
[1770486670235,0.54466348,2062.3,2060.8,2.83655329]
[1770486670236,0.54466348,2062.3,2061.1,0.53088134]
[1770486670435,0.54466348,2062.3,2060.8,1.14291021]
[1770486670636,0.54466348,2062.3,2060.9,0.53088134]
[1770486671031,0.54466348,2062.3,2061.0,1.14291021]
[1770486671238,0.54466348,2062.3,2061.0,2.0758837]
[1770486671737,0.54466348,2062.3,2061.0,1.54399132]
[1770486671938,49.24507469,2062.9,2061.1,0.53189238]
[1770486672142,0.24758853,2063.2,2061.3,0.52135409]
[1770486672143,0.5545751,2063.0,2061.3,0.52135409]
[1770486672337,0.5545751,2063.0,2061.5,0.52135409]
[1770486672535,0.5545751,2063.0,2061.1,2.83655329]
[1770486672536,0.5545751,2063.0,2061.7,0.52135409]
[1770486673038,0.5545751,2063.0,2061.9,0.52135409]
[1770486673443,0.5545751,2063.0,2062.0,1.14291021]
[1770486673744,44.00912628,2062.6,2060.9,0.00351871]
[1770486673936,0.5545751,2062.3,2060.9,0.00351871]
[1770486675346,0.5545751,2062.3,2060.9,0.3879856]
[1770486677938,0.5545751,2062.1,2060.7,0.0008]
[1770486678149,0.5545751,2062.1,2060.2,0.5261928]
[1770486678340,0.5545751,2062.1,2060.3,0.5269928]
[1770486679046,0.5545751,2062.1,2060.3,0.53270818]
[1770486687342,0.5545751,2062.0,2060.3,0.53270818]
[1770486695256,0.5545751,2062.0,2060.5,0.55443104]
[1770486696365,0.5545751,2062.0,2060.6,0.5375802]
[1770486697161,0.5545751,2062.0,2060.6,2.83655329]
[1770486697368,0.5545751,2062.0,2060.7,0.5375802]
[1770486699162,0.5545751,2062.0,2060.8,0.5375802]
[1770486700566,0.5545751,2062.0,2060.7,2.83655329]
[1770486700766,0.5545751,2062.0,2060.8,0.5375802]
[1770486702268,0.5545751,2062.0,2060.9,0.5375802]
[1770486702966,0.55179512,2061.8,2060.7,0.5375802]
[1770486703368,0.55179512,2061.7,2060.7,0.5375802]
[1770486703671,0.55702362,2061.7,2060.7,0.5375802]
[1770486707670,0.55179512,2061.6,2060.7,0.5375802]
[1770486708271,0.55179512,2061.5,2060.6,0.5375802]
[1770486709269,0.55179512,2061.4,2060.5,0.5375802]
[1770486710273,0.55179512,2061.4,2060.4,0.5375802]
[1770486711077,43.45455118,2061.2,2060.3,0.00571538]
[1770486711378,0.55179512,2061.1,2060.3,0.00571538]
[1770486713077,0.55179512,2061.1,2060.4,0.5375802]
[1770486713270,0.55179512,2061.1,2060.3,0.54329558]
[1770486713971,0.55179512,2061.1,2060.3,0.00571538]
[1770486714178,44.0063463,2061.1,2060.3,0.00571538]
[1770486714376,0.55179512,2061.0,2060.3,0.00571538]
[1770486714577,6.39645369,2061.6,2060.3,0.54329558]
[1770486714771,0.58763225,2061.5,2060.3,0.54329558]
[1770486714973,0.58763225,2061.5,2060.3,0.00571538]
[1770486716080,0.58473019,2061.4,2060.4,0.00580412]
[1770486718477,0.58473019,2061.4,2060.3,0.06292795]
[1770486718785,0.55902597,2061.1,2060.3,0.00571538]
[1770486720380,5.80882144,2061.2,2060.3,0.05669272]
[1770486720580,0.56214358,2061.3,2060.3,0.05669272]
[1770486723986,0.56214358,2061.3,2060.3,0.00571538]
[1770486724586,0.56214358,2061.3,2060.3,0.06839563]
[1770486725489,0.56214358,2061.3,2060.3,0.00571538]
[1770486725688,0.56214358,2061.3,2060.3,0.06839947]
[1770486728083,0.56794704,2061.5,2060.3,0.06839947]
[1770486728888,0.56794704,2061.4,2060.3,0.06839947]
[1770486729084,0.56794704,2061.4,2060.3,0.00571538]
[1770486729385,0.56794704,2061.3,2060.3,0.05897733]
[1770486729591,0.56794704,2061.3,2060.3,0.00571538]
[1770486730783,6.37676848,2061.3,2060.3,0.00571538]
[1770486730980,0.55756976,2061.2,2060.3,0.00571538]
[1770486731588,0.55756976,2061.2,2060.3,0.06580214]
[1770486731890,0.55756976,2061.2,2060.3,0.00571538]
[1770486733894,0.55756976,2061.2,2060.3,0.06006505]
[1770486734296,0.55756976,2061.2,2060.3,0.00571538]
[1770486734497,6.3663912,2061.2,2060.3,0.00571538]
[1770486734696,0.56029861,2061.1,2060.3,0.00571538]
[1770486736801,0.55649779,2060.8,2059.7,4.02894543]
[1770486736996,0.55649779,2060.8,2059.9,0.0623385]
[1770486737196,5.80882144,2061.0,2059.9,0.0623385]
[1770486737397,0.55649779,2061.0,2060.0,0.0623385]
[1770486737600,0.55649779,2061.0,2060.1,0.0623385]
[1770486738302,0.55236946,2060.9,2060.1,0.0623385]
[1770486738700,0.55236946,2060.9,2060.0,0.44485819]
[1770486739199,0.55236946,2060.9,2060.0,0.07461668]
[1770486739399,0.55236946,2060.9,2060.0,0.00402151]
[1770486739703,0.55236946,2060.8,2060.0,0.00402151]
[1770486739907,0.55236946,2060.5,2060.0,0.00088755]
[1770486740300,0.55119303,2060.3,2059.2,2.83655329]
[1770486740497,0.55119303,2060.3,2059.3,0.07294803]
[1770486740697,0.55119303,2060.2,2059.3,0.07294803]
[1770486740899,0.55119303,2060.2,2059.1,2.83655329]
[1770486741201,0.55620009,2060.2,2059.2,0.07294803]
[1770486742703,0.55620009,2060.2,2059.1,0.38757465]
[1770486742907,0.59669613,2060.1,2059.1,0.38757465]
[1770486743596,0.00500706,2060.2,2059.1,3.22412794]
[1770486743801,0.59669613,2060.1,2059.1,0.38757465]
[1770486744399,0.59669613,2060.1,2059.1,0.00464485]
[1770486745603,0.60630438,2060.0,2059.1,0.00464485]
[1770486745996,0.60398196,2059.9,2058.4,2.83655329]
[1770486746202,0.58971428,2059.8,2058.2,2.83655329]
[1770486746406,0.58971428,2059.7,2058.1,2.83655329]
[1770486746607,0.58971428,2059.6,2058.1,2.83655329]
[1770486746801,0.58971428,2059.6,2057.9,2.83655329]
[1770486746802,0.58971428,2059.5,2057.9,2.83655329]
[1770486747001,0.58971428,2059.5,2057.9,2.84092652]
[1770486747712,0.58971428,2059.5,2057.9,0.00437323]
[1770486748407,0.58729297,2059.4,2057.9,0.00437323]
[1770486748607,0.58729297,2059.4,2057.9,0.38039002]
[1770486750307,44.0858423,2059.4,2057.5,0.3697856]
[1770486750508,0.5421668,2059.3,2057.5,0.3697856]
[1770486750908,0.5421668,2059.3,2057.6,0.3697856]
[1770486751211,0.5421668,2059.3,2057.6,0.37488069]
[1770486752303,43.49854933,2059.5,2057.6,1.78873373]
[1770486752609,0.5421668,2059.4,2057.7,0.37237066]
[1770486753804,0.5421668,2059.4,2057.6,0.00509509]
[1770486754004,0.5421668,2059.3,2057.6,0.37746575]
[1770486754802,1.95601984,2059.2,2057.6,0.00509509]
[1770486755004,0.5421668,2058.9,2057.6,0.00509509]
[1770486755707,0.5421668,2058.9,2057.7,0.39852782]
[1770486757609,0.55785113,2059.1,2057.9,0.39573039]
[1770486758515,0.55785113,2059.3,2057.9,0.39573039]
[1770486758806,0.55785113,2059.5,2057.9,0.39573039]
[1770486759212,0.55785113,2059.5,2058.3,0.38967868]
[1770486759807,0.55785113,2059.5,2057.9,0.38967868]
[1770486760016,0.55785113,2059.5,2057.7,0.38967868]
[1770486760312,0.55785113,2059.7,2057.9,0.39530289]
[1770486760812,0.55785113,2059.7,2058.1,0.39530289]
[1770486762301,0.55785113,2059.4,2058.1,0.41799081]
[1770486764510,0.55785113,2059.4,2057.6,26.41894813]
[1770486764511,0.55785113,2059.4,2057.9,0.41522336]
[1770486765312,0.55785113,2059.6,2057.9,0.41522336]
[1770486765501,0.55785113,2059.6,2058.1,0.41522336]
[1770486766504,0.00500706,2060.2,2058.5,0.41170518]
[1770486766711,0.00500706,2060.2,2058.6,0.41170518]
[1770486766712,0.56285819,2060.2,2058.6,0.41170518]
[1770486767414,0.56285819,2060.2,2058.7,0.41170518]
[1770486767612,0.56285819,2060.2,2058.8,0.41170518]
[1770486767814,0.56285819,2060.2,2058.9,0.41170518]
[1770486768413,0.55785113,2060.6,2059.1,0.41238712]
[1770486769223,0.55785113,2060.6,2059.2,0.41238712]
[1770486769411,0.56266185,2060.6,2059.2,0.41629406]
[1770486771218,0.56266185,2060.6,2059.2,0.00390694]
[1770486771413,0.56266185,2060.6,2059.2,0.41987564]
[1770486778917,0.55785113,2060.5,2059.2,0.41987564]
[1770486784233,0.55785113,2060.5,2058.8,2.81095538]
[1770486784441,0.55785113,2060.5,2058.8,0.42179057]
[1770486785233,0.55785113,2060.4,2058.8,0.42766804]
[1770486785433,0.55785113,2060.4,2058.8,3.23862342]
[1770486785635,0.55785113,2060.4,2058.9,0.41942182]
[1770486785834,0.55785113,2060.4,2059.0,3.2303772]
[1770486786040,0.55785113,2060.4,2059.1,0.41942182]
[1770486787240,0.55785113,2060.4,2059.2,0.42232998]
[1770486788839,0.55785113,2060.4,2059.1,2.81095538]
[1770486789141,0.53961493,2060.3,2058.9,0.41735881]
[1770486789536,44.03816426,2060.1,2058.8,0.00587747]
[1770486789731,0.53961493,2060.0,2058.8,0.42323628]
[1770486789934,44.03816426,2060.0,2058.8,0.00587747]
[1770486790132,0.53961493,2059.8,2058.8,0.00087042]
[1770486791437,8.68504031,2060.3,2058.8,0.00087042]
[1770486791438,43.49854933,2060.2,2058.8,0.42260206]
[1770486791634,0.53112729,2060.1,2058.8,0.42260206]
[1770486792838,0.53112729,2060.1,2058.9,0.42150007]
[1770486793142,0.53112729,2060.1,2059.0,0.42150007]
[1770486796043,0.53112729,2060.1,2059.1,0.41729643]
[1770486798349,0.53112729,2060.1,2059.1,0.46408427]
[1770486802346,0.53112729,2060.1,2059.0,2.81095538]
[1770486802552,0.53112729,2060.1,2059.1,0.45835774]
[1770486805354,0.53112729,2060.1,2059.2,0.45913121]
[1770486805548,0.53112729,2060.1,2059.3,0.45913121]
[1770486805757,0.53112729,2060.1,2059.1,0.45913121]
[1770486805947,0.53112729,2060.0,2059.1,0.45913121]
[1770486806342,0.53112729,2060.0,2058.9,0.45800975]
[1770486806543,0.53112729,2060.0,2058.8,2.8118258]
[1770486806544,0.53112729,2059.9,2058.8,0.45888017]
[1770486807054,0.53112729,2059.8,2058.8,0.00087042]
[1770486807256,44.02967662,2059.8,2058.8,0.00087042]
[1770486807655,0.53112729,2059.7,2058.8,0.00087042]
[1770486809254,43.49854933,2059.8,2058.9,0.4617405]
[1770486809454,0.53112729,2059.7,2058.9,0.4617405]
[1770486809655,0.53112729,2059.7,2058.5,2.81095538]
[1770486809953,0.53112729,2059.5,2058.4,0.46261092]
[1770486810154,43.49854933,2059.7,2058.4,0.46261092]
[1770486810357,0.53112729,2059.6,2058.4,0.46261092]
[1770486810752,0.53112729,2059.6,2058.4,0.46827699]
[1770486813754,0.53112729,2059.6,2058.4,0.00566607]
[1770486813959,0.53112729,2059.6,2058.4,0.46423502]
[1770486817667,0.53112729,2059.6,2058.5,0.45890268]
[1770486817965,0.53112729,2059.6,2058.6,0.45890268]
[1770486818365,0.53112729,2059.6,2058.7,0.45902718]
[1770486821064,0.53112729,2059.6,2058.5,0.44709179]
[1770486821361,44.08088843,2059.5,2058.4,0.00566607]
[1770486821563,0.5823391,2059.4,2058.4,0.00566607]
[1770486822368,0.5823391,2059.4,2058.4,0.4544057]
[1770486822562,0.5823391,2059.5,2058.4,0.4544057]
[1770486822765,0.5823391,2059.5,2058.5,0.44873963]
[1770486823671,0.5823391,2059.5,2058.6,0.44873963]
[1770486823876,0.5823391,2059.5,2058.7,0.44873963]
[1770486825466,0.5823391,2059.5,2058.6,3.26325591]
[1770486825766,0.5823391,2059.5,2058.7,0.45230053]
[1770486827073,0.5823391,2059.7,2058.8,0.4600429]
[1770486827276,0.5823391,2059.7,2058.9,0.4600429]
[1770486827772,0.5823391,2059.7,2059.0,0.4600429]
[1770486828371,0.5823391,2059.7,2059.1,0.45544087]
[1770486829374,0.5823391,2060.2,2059.1,0.45544087]
[1770486829574,0.5823391,2060.2,2059.2,0.45544087]
[1770486830873,0.5823391,2059.7,2058.9,0.45088596]
[1770486831570,0.5823391,2059.9,2058.9,0.45088596]
[1770486833169,43.49854933,2059.9,2058.9,0.45088596]
[1770486833368,0.5823391,2059.9,2059.1,0.45188361]
[1770486833675,0.5823391,2059.9,2059.2,0.45188361]
[1770486834875,0.5823391,2059.9,2058.6,3.22218909]
[1770486834876,0.5823391,2059.8,2058.6,3.22218909]
[1770486835173,0.5823391,2059.7,2058.7,0.41123371]
[1770486835372,0.5823391,2059.7,2058.8,0.41123371]
[1770486838277,0.5823391,2059.7,2058.8,3.22218909]
[1770486838478,0.5823391,2059.7,2058.9,0.42768185]
[1770486839368,0.5823391,2059.9,2059.0,0.42768185]
[1770486839573,0.5823391,2059.9,2059.1,0.42768185]
[1770486840375,0.5823391,2059.9,2059.1,3.23863723]
[1770486840575,0.5823391,2059.9,2059.2,0.42420068]
[1770486840878,43.49854933,2060.4,2059.3,0.42420068]
[1770486841079,0.5823391,2060.3,2059.3,3.23515606]
[1770486841380,0.5823391,2060.3,2059.4,0.5829267]
[1770486841780,0.5823391,2060.3,2059.5,0.5829267]
[1770486845681,0.5823391,2060.3,2059.3,2.81095538]
[1770486845887,0.5823391,2060.3,2059.1,0.56903216]
[1770486846790,0.52864947,2060.2,2059.0,0.56903216]
[1770486846989,0.52864947,2060.2,2059.0,3.37998754]
[1770486847186,0.52864947,2060.4,2059.2,0.56903216]
[1770486848289,0.52864947,2060.4,2059.3,0.56903216]
[1770486848687,0.52864947,2060.4,2059.4,0.56903216]
[1770486849091,0.00481072,2060.6,2059.4,0.56903216]
[1770486849285,0.53346019,2060.6,2059.4,0.56903216]
[1770486855295,0.53346019,2060.6,2059.5,0.5729101]
[1770486857995,0.58284261,2060.5,2059.5,0.5729101]
[1770486859498,0.58284261,2060.5,2059.6,0.5729101]
[1770486862298,0.58284261,2060.5,2059.7,0.5729101]
[1770486862699,0.00481072,2060.6,2059.7,3.38386548]
[1770486863004,0.58284261,2061.0,2059.9,0.5729101]
[1770486863205,0.58284261,2061.2,2060.1,0.5729101]
[1770486863504,0.58284261,2061.2,2060.2,0.5729101]
[1770486864013,0.58725502,2061.2,2060.2,0.5780346]
[1770486865899,0.00441241,2061.2,2060.2,0.5780346]
[1770486866205,0.00441241,2061.2,2060.3,0.5729101]
[1770486866406,0.58284261,2061.3,2060.3,0.5729101]
[1770486866805,0.58284261,2061.3,2060.4,0.5729101]
[1770486867307,0.58810736,2061.3,2060.4,0.5729101]
[1770486869206,0.58810736,2061.3,2060.5,0.5729101]
[1770486869602,0.58810736,2061.3,2060.4,0.41076842]
[1770486869809,0.58810736,2061.3,2060.4,0.5729101]
[1770486870306,0.58810736,2061.3,2060.2,0.5780346]
[1770486870507,0.58810736,2061.3,2060.3,0.5729101]
[1770486871110,0.58284261,2061.2,2060.2,0.5780346]
[1770486876209,0.55350294,2061.1,2060.2,0.5780346]
[1770486878107,0.55350294,2061.1,2060.2,0.0051245]
[1770486879214,0.55350294,2061.1,2060.2,0.55347851]
[1770486881414,0.55350294,2061.1,2059.8,2.85047967]
[1770486881716,0.55350294,2060.5,2059.5,0.54835401]
[1770486882305,0.55350294,2060.5,2059.5,3.39883368]
[1770486882511,0.55350294,2060.8,2059.7,0.54835401]
[1770486882714,0.55350294,2060.8,2059.8,0.54835401]
[1770486884016,0.55350294,2060.7,2059.8,0.54835401]
[1770486885608,0.55350294,2060.6,2059.5,0.55399838]
[1770486885816,0.55350294,2060.5,2059.5,0.55399838]
[1770486886320,0.55350294,2060.5,2059.5,0.3924296]
[1770486886618,0.55350294,2060.5,2059.6,0.54835401]
[1770486889518,0.55350294,2060.5,2059.5,0.3924296]
[1770486889722,0.55350294,2060.5,2059.6,0.54835401]
[1770486893823,0.55350294,2060.5,2059.7,0.54835401]
[1770486894022,0.55350294,2060.7,2059.9,0.54835401]
[1770486894638,0.55350294,2060.5,2059.7,0.54835401]
[1770486901416,0.55350294,2060.5,2059.5,0.94078361]
[1770486901620,0.55350294,2060.5,2059.6,0.54835401]
[1770486903227,0.55350294,2060.3,2059.5,0.55399838]
[1770486903732,0.55350294,2060.2,2059.5,0.55399838]
[1770486906021,0.55350294,2060.2,2059.5,0.00564437]
[1770486906225,0.53144713,2060.1,2059.5,0.55581612]
[1770486907532,0.53144713,2060.1,2059.5,0.00564437]
[1770486907827,0.53144713,2060.1,2059.2,1.1492812]
[1770486908027,0.53144713,2059.5,2058.4,3.40065142]
[1770486908228,0.53144713,2059.3,2058.5,0.55017175]
[1770486908426,0.53144713,2059.3,2058.2,0.55017175]
[1770486908627,0.53144713,2059.3,2058.3,0.55017175]
[1770486908826,0.53706102,2059.3,2058.3,0.55017175]
[1770486909029,0.53706102,2059.3,2058.3,0.5538311]
[1770486909336,0.53144713,2059.0,2057.8,0.55017175]
[1770486910232,0.53144713,2059.0,2057.8,0.55368604]
[1770486912934,0.53144713,2059.0,2057.9,0.56719054]
[1770486913530,0.53144713,2059.0,2057.8,0.00351429]
[1770486913728,0.53399878,2058.9,2057.8,0.00351429]
[1770486914930,0.53399878,2058.7,2057.4,0.56719054]
[1770486915335,0.53399878,2058.6,2056.8,0.56719054]
[1770486915530,0.53399878,2058.6,2056.9,0.56719054]
[1770486915838,0.53399878,2058.5,2056.9,0.56719054]
[1770486916032,0.53399878,2058.5,2056.9,0.57317637]
[1770486916329,43.49854933,2058.7,2056.9,0.57317637]
[1770486916538,0.53399878,2058.7,2056.9,0.57317637]
[1770486919533,0.53399878,2058.6,2056.6,0.19756049]
[1770486919731,0.53399878,2058.2,2056.6,0.76475103]
[1770486919936,0.53399878,2058.2,2056.7,0.56719054]
[1770486920731,0.53399878,2058.2,2056.7,0.57218521]
[1770486922130,0.53399878,2058.5,2056.7,0.57218521]
[1770486923234,0.53399878,2058.5,2056.8,0.56719054]
[1770486923835,0.00561389,2059.3,2057.0,0.56719054]
[1770486924040,0.53399878,2059.7,2058.2,0.56719054]
[1770486924228,0.53399878,2059.7,2058.3,0.56719054]
[1770486925042,0.53945546,2059.7,2058.3,0.57131307]
[1770486927037,0.53399878,2059.6,2058.3,0.00412253]
[1770486928338,0.53399878,2059.5,2058.3,0.00412253]
[1770486928931,0.53399878,2059.5,2058.3,0.57131307]
[1770486929135,0.53945546,2059.7,2058.3,0.57131307]
[1770486930538,0.53399878,2059.6,2058.3,0.00412253]
[1770486931337,43.49854933,2059.6,2058.3,0.00412253]
[1770486931539,0.53399878,2059.5,2058.3,0.00412253]
[1770486931741,0.53399878,2059.3,2058.3,0.00412253]
[1770486934242,44.03254811,2059.3,2058.3,0.00412253]
[1770486934442,0.53399878,2059.2,2058.3,0.00412253]
[1770486935242,44.03254811,2059.2,2058.3,0.00412253]
[1770486935536,0.57809232,2059.1,2058.3,0.00412253]
[1770486937944,44.07664165,2059.1,2058.3,0.00412253]
[1770486938148,0.57809232,2059.0,2058.3,0.00412253]
[1770486942163,0.57809232,2058.9,2058.3,0.00412253]
[1770486942553,0.57809232,2058.9,2058.3,0.56486201]
[1770486948466,44.08209833,2059.7,2058.3,0.56486201]
[1770486948765,0.57809232,2059.6,2058.3,0.56486201]
[1770486950065,0.57809232,2059.4,2058.3,0.56486201]
[1770486950960,0.57809232,2059.3,2058.3,0.56486201]
[1770486953868,0.57809232,2059.4,2058.3,0.56486201]
[1770486955370,0.57809232,2059.2,2058.3,0.56486201]
[1770486961775,0.57809232,2059.4,2058.3,0.56486201]
[1770486961967,0.57809232,2059.2,2058.4,0.56073948]
[1770486962167,0.57809232,2059.1,2058.4,0.56073948]
[1770486962672,44.07664165,2059.2,2058.4,0.56073948]
[1770486962874,0.57809232,2059.1,2058.4,0.56073948]
[1770486964270,43.49854933,2059.4,2058.4,0.56073948]
[1770486964471,43.49854933,2059.6,2058.5,0.56073948]
[1770486964875,0.583549,2059.7,2058.8,0.56073948]
[1770486965070,0.583549,2059.7,2059.0,0.56073948]
[1770486972079,0.54762088,2060.1,2059.0,0.56073948]
[1770486972481,0.54762088,2060.1,2059.1,0.53542675]
[1770486973081,0.55313737,2060.1,2059.1,0.53542675]
[1770486975180,0.55313737,2060.1,2059.2,0.53542675]
[1770486975780,0.00551649,2060.1,2059.2,0.53542675]
[1770486979482,43.49854933,2060.8,2059.3,0.53542675]
[1770486979678,0.54762088,2061.2,2059.8,0.35423039]
[1770486979882,0.54762088,2061.2,2060.0,0.35423039]
[1770486980086,0.54762088,2061.2,2060.0,13.73523039]
[1770486980286,0.54762088,2061.2,2060.1,0.34334667]
[1770486980482,0.55188202,2061.2,2060.1,0.76893234]
[1770486981382,0.54762088,2061.0,2060.1,0.00608753]
[1770486981586,0.54762088,2060.9,2060.1,0.00608753]
[1770486984084,0.54762088,2060.9,2060.1,0.35613486]
[1770486985289,0.54762088,2060.9,2060.2,0.3503929]
[1770486987787,0.35717947,2060.9,2060.2,0.3503929]
[1770486989591,0.54762088,2061.1,2060.2,0.3503929]
[1770486994286,0.00426114,2061.2,2060.2,0.3503929]
[1770486994489,0.55188202,2061.2,2060.2,0.3503929]
[1770486996587,0.00426114,2061.2,2060.2,0.3503929]
[1770486997487,0.57086815,2061.2,2060.2,0.3503929]
[1770486998088,0.00426114,2061.2,2060.2,0.3503929]
[1770486998995,5.80882144,2061.9,2060.1,7.09210535]
[1770486998996,0.56660701,2061.8,2060.4,0.54857739]
[1770486999191,0.56660701,2061.9,2060.6,0.54857739]
[1770486999495,0.56660701,2061.9,2060.8,0.54857739]
[1770487000092,0.57255878,2061.9,2060.8,0.54857739]
[1770487000394,0.00595177,2061.9,2060.8,0.54857739]
[1770487000891,0.00595177,2061.9,2060.9,0.54857739]
[1770487001495,0.56660701,2062.4,2061.1,0.54857739]
[1770487002596,0.57230021,2062.4,2061.2,0.54857739]
[1770487003093,0.56660701,2062.3,2061.2,0.54857739]
[1770487003489,0.56660701,2062.3,2060.8,0.54857739]
[1770487004397,0.0056932,2062.4,2060.9,0.54857739]
[1770487004594,0.0056932,2062.4,2061.1,0.54857739]
[1770487004791,0.0056932,2062.4,2061.4,0.54857739]